Workbook

Sheet instructions

Sheet 2x Retested Students
A1: gt 1 Mean | B1: 471.5857143 | D1: gt 2 Mean | E1: 555.1142857 | G1: gt Improve Mean | H1: 103.3285714 | J1: gt Improve Perc | K1: 0.7857142857 | M1: gt Improve Num | N1: 22
A2: lt 1 Mean | B2: 361.2392857 | D2: lt 2 Mean | E2: 444.725 | G2: lt Improve Mean | H2: 102.125 | J2: lt Improve Perc | K2: 0.75 | M2: lt Improve Num | N2: 21
A3: rt 1 Mean | B3: 460.1607143 | D3: rt 2 Mean | E3: 517.5071429 | G3: rt Improve Mean | H3: 76.00357143 | J3: rt Improve Perc | K3: 0.6785714286 | M3: rt Improve Num | N3: 19
A5: gt 1 Var | B5: 34540.41534 | D5: gt 2 Var | E5: 35034.8072 | G5: gt Improve Var | H5: 17306.59206
A6: lt 1 Var | B6: 36853.82618 | D6: lt 2 Var | E6: 29450.22787 | G6: lt Improve Var | H6: 21766.75806
A7: rt 1 Var | B7: 26525.42099 | D7: rt 2 Var | E7: 13452.78587 | G7: rt Improve Var | H7: 20528.17739
A9: Last Name | B9: First Name | C9: ID Number | D9: Grammar Test | F9: Listening Test | H9: Reading Test
A10: Diaz | B10: Alejandra | C10: 2013-05-13 | D10: Grammar Test | E10: 506.7 | F10: Listening Test | G10: 437.5 | H10: Reading Test | I10: 586.8 | J10: Log 1-4
A11: Diaz | B11: Alejandra | C11: 2013-08-13 | D11: Grammar Test | E11: 573.9 | F11: Listening Test | G11: 613.8 | H11: Reading Test | I11: 653.5 | J11: Log 1-5
E12: =E11-E10 -> 67.2 | G12: =G11-G10 -> 176.3 | I12: =I11-I10 -> 66.7
A13: Mendez | B13: Eva | C13: 2013-06-05 | D13: Grammar Test | E13: 636.1 | F13: Listening Test | G13: 595.4 | H13: Reading Test | I13: 543.5
A14: Mendez | B14: Eva | C14: 2013-08-13 | D14: Grammar Test | E14: 735.2 | F14: Listening Test | G14: 549.2 | H14: Reading Test | I14: 334
E15: =E14-E13 -> 99.1 | G15: =G14-G13 -> -46.2 | I15: =I14-I13 -> -209.5
A16: Silva | B16: Ana | C16: 2013-07-15 | D16: Grammar Test | E16: 593.1 | F16: Listening Test | G16: 458.5 | H16: Reading Test | I16: 577.5 | J16: Log 1-4
A17: Silva | B17: Ana | C17: 2013-08-13 | D17: Grammar Test | E17: 575.5 | F17: Listening Test | G17: 100 | H17: Reading Test | I17: 562.3
E18: =E17-E16 -> -17.6 | G18: =G17-G16 -> -358.5 | I18: =I17-I16 -> -15.2
A19: Albukharl | B19: Bandar | C19: 2013-06-05 | D19: Grammar Test | E19: 100 | F19: Listening Test | G19: 100 | H19: Reading Test | I19: 100
A20: Albukharl | B20: Bandar | C20: 2013-08-13 | D20: Grammar Test | E20: 378.3 | F20: Listening Test | G20: 100 | H20: Reading Test | I20: 305.5
E21: =E20-E19 -> 278.3 | G21: =G20-G19 -> 0 | I21: =I20-I19 -> 205.5
A22: sanchez | B22: julie | C22: 2013-06-05 | D22: Grammar Test | E22: 401.8 | F22: Listening Test | G22: 100 | H22: Reading Test | I22: 482.3 | J22: Log 2-6
A23: sanchez | B23: julie | C23: 2013-08-13 | D23: Grammar Test | E23: 560.2 | F23: Listening Test | G23: 296.6 | H23: Reading Test | I23: 463
E24: =E23-E22 -> 158.4 | G24: =G23-G22 -> 196.6 | I24: =I23-I22 -> -19.3
A25: Dhafer | B25: Mohammed | C25: 2013-04-29 | D25: Grammar Test | E25: 395.4 | F25: Listening Test | G25: 377.6 | H25: Reading Test | I25: 534 | J25: Log 2-5
A26: Dhafer | B26: Mohammed | C26: 2013-08-13 | D26: Grammar Test | E26: 575 | F26: Listening Test | G26: 444.5 | H26: Reading Test | I26: 639.9
E27: =E26-E25 -> 179.6 | G27: =G26-G25 -> 66.9 | I27: =I26-I25 -> 105.9
A28: Tapia | B28: Rodrigo | C28: 2013-05-06 | D28: Grammar Test | E28: 374.8 | F28: Listening Test | G28: 298.8 | H28: Reading Test | I28: 320.3 | J28: Log 2-6
A29: Tapia | B29: Rodrigo | C29: 2013-08-13 | D29: Grammar Test | E29: 562.3 | F29: Listening Test | G29: 446.9 | H29: Reading Test | I29: 515.3
E30: =E29-E28 -> 187.5 | G30: =G29-G28 -> 148.1 | I30: =I29-I28 -> 195
A31: Nino | B31: Valeria | C31: 2013-05-16 | D31: Grammar Test | E31: 582.8 | F31: Listening Test | G31: 524.2 | H31: Reading Test | I31: 634.1 | J31: Log 2-6
A32: Nino | B32: Valeria | C32: 2013-08-13 | D32: Grammar Test | E32: 651.8 | F32: Listening Test | G32: 641.1 | H32: Reading Test | I32: 619.6
E33: =E32-E31 -> 69 | G33: =G32-G31 -> 116.9 | I33: =I32-I31 -> -14.5
A34: Asturizaga | B34: waldo | C34: 2013-01-21 | D34: Grammar Test | E34: 304.9 | F34: Listening Test | G34: 300.5 | H34: Reading Test | I34: 100 | J34: Log 2-1
A35: Asturizaga | B35: waldo | C35: 2013-08-13 | D35: Grammar Test | E35: 564.3 | F35: Listening Test | G35: 612.8 | H35: Reading Test | I35: 612.7
E36: =E35-E34 -> 259.4 | G36: =G35-G34 -> 312.3 | I36: =I35-I34 -> 512.7
A37: Kuo | B37: Yun Hui (Joanna) | C37: 2013-01-22 | D37: Grammar Test | E37: 597.5 | F37: Listening Test | G37: 453.1 | H37: Reading Test | I37: 573.3 | J37: Log 2-1
A38: Kuo | B38: Yun Hui (Joanna) | C38: 2013-08-13 | D38: Grammar Test | E38: 661.5 | F38: Listening Test | G38: 538 | H38: Reading Test | I38: 580.4
E39: =E38-E37 -> 64 | G39: =G38-G37 -> 84.9 | I39: =I38-I37 -> 7.1
A40: aguirre | B40: marcela | C40: 20120815 | D40: Grammar Test | E40: 265.8 | F40: Listening Test | G40: 100 | H40: Reading Test | I40: 279.3 | J40: Log 2-4
A41: aguirre | B41: marcela | C41: 20121126 | D41: Grammar Test | E41: 412.9 | F41: Listening Test | G41: 510.4 | H41: Reading Test | I41: 524.3 | J41: Log 1-6
E42: =E41-E40 -> 147.1 | G42: =G41-G40 -> 410.4 | I42: =I41-I40 -> 245
A43: Almeida | B43: Alexandre | C43: 20120102 | D43: Grammar Test | E43: 753.5 | F43: Listening Test | G43: 591.4 | H43: Reading Test | I43: 671.8 | J43: Log 1-6
A44: almeida | B44: alexandre | C44: 20120130 | D44: Grammar Test | E44: 905.9 | F44: Listening Test | G44: 653.9 | H44: Reading Test | I44: 679.9 | J44: Log 1-3
E45: =E44-E43 -> 152.4 | G45: =G44-G43 -> 62.5 | I45: =I44-I43 -> 8.1
A46: Alqarni | B46: Fahad | C46: 20130124 | D46: Grammar Test | E46: 422.5 | F46: Listening Test | G46: 398.8 | H46: Reading Test | I46: 535.1 | J46: Log 1-3
A47: alqarni | B47: fahad | C47: 20120911 | D47: Grammar Test | E47: 347.6 | F47: Listening Test | G47: 307.9 | H47: Reading Test | I47: 431.9 | J47: Log 1-4
E48: =E47-E46 -> -74.9 | G48: =G47-G46 -> -90.9 | I48: =I47-I46 -> -103.2
A49: Alshararie | B49: yousef | C49: 20130114 | D49: Grammar Test | E49: 100 | F49: Listening Test | G49: 100 | H49: Reading Test | I49: 224.3 | J49: Log 1-4
A50: Alshararie | B50: Yousef | C50: 20130422 | D50: Grammar Test | E50: 395.9 | F50: Reading Test | G50: 262.4 | H50: Listening Test | I50: 342.1 | J50: Log 1-3
E51: =E50-E49 -> 295.9 | G51: =G50-G49 -> 162.4 | I51: =I50-I49 -> 117.8
A52: antezana | B52: carla | C52: 20130208 | D52: Grammar Test | E52: 677.9 | F52: Listening Test | G52: 544.4 | H52: Reading Test | I52: 593.2 | J52: Log 1-4
A53: Antezana | B53: Carla | C53: 20130607 | D53: Grammar Test | E53: 634.8 | F53: Listening Test | G53: 636.9 | H53: Reading Test | I53: 598.7 | J53: Log 1-4
E54: =E53-E52 -> -43.1 | G54: =G53-G52 -> 92.5 | I54: =I53-I52 -> 5.5
A55: Arroyo | B55: Yadhira | C55: 20120615 | D55: Grammar Test | E55: 730.5 | F55: Listening Test | G55: 653.4 | H55: Reading Test | I55: 607.8 | J55: Log 3-1
A56: Arroyo | B56: Yadhira | C56: 20120720 | D56: Grammar Test | E56: 908.9 | F56: Listening Test | G56: 600.2 | H56: Reading Test | I56: 557.1 | J56: Log 1-4
E57: =E56-E55 -> 178.4 | G57: =G56-G55 -> -53.2 | I57: =I56-I55 -> -50.7
A58: Betancourt | B58: Julieta | C58: 20120126 | D58: Grammar Test | E58: 610.7 | F58: Listening Test | G58: 569.6 | H58: Reading Test | I58: 618.6 | J58: Log 1-4
A59: Betancourt | B59: Julieta | C59: 20120102 | D59: Grammar Test | E59: 582.8 | F59: Listening Test | G59: 566 | H59: Reading Test | I59: 497.2 | J59: Log 2-1
E60: =E59-E58 -> -27.9 | G60: =G59-G58 -> -3.6 | I60: =I59-I58 -> -121.4
A61: Cissoko | B61: Moussa Moise | C61: 20101015 | D61: Grammar Test | E61: 594.9 | F61: Listening Test | G61: 521.4 | H61: Reading Test | I61: 563.5 | J61: Log 2-6
A62: Cissoko | B62: Moise | C62: 20101112 | D62: Grammar Test | E62: 728.7 | F62: Listening Test | G62: 628.9 | H62: Reading Test | I62: 574.6 | J62: Log 2-6
E63: =E62-E61 -> 133.8 | G63: =G62-G61 -> 107.5 | I63: =I62-I61 -> 11.1
A64: Jimenez | B64: Edgar | C64: 20101116 | D64: Grammar Test | E64: 459 | F64: Listening Test | G64: 448.4 | H64: Reading Test | I64: 436.7 | J64: Log 3-6
A65: jimenez | B65: edgar | C65: 20110214 | D65: Grammar Test | E65: 579.2 | F65: Listening Test | G65: 453.3 | H65: Reading Test | I65: 466.7 | J65: Log 3-6
E66: =E65-E64 -> 120.2 | G66: =G65-G64 -> 4.9 | I66: =I65-I64 -> 30
A67: Loussaief | B67: imene | C67: 20111010 | D67: Grammar Test | E67: 635.5 | F67: Listening Test | G67: 458.3 | H67: Reading Test | I67: 510.9 | J67: Log 1-4
A68: Loussaief | B68: Imene | C68: 20120207 | D68: Grammar Test | E68: 692.4 | F68: Listening Test | G68: 513 | H68: Reading Test | I68: 576.4 | J68: Log 1-3
E69: =E68-E67 -> 56.9 | G69: =G68-G67 -> 54.7 | I69: =I68-I67 -> 65.5
A70: Maciel | B70: Pedro | C70: 20120405 | D70: Grammar Test | E70: 647.9 | F70: Listening Test | G70: 410.4 | H70: Reading Test | I70: 576.7 | J70: Log 1-4
A71: maciel | B71: pedro | C71: 20121128 | D71: Grammar Test | E71: 614.4 | F71: Listening Test | G71: 524.4 | H71: Reading Test | I71: 478.9 | J71: Log 2-6
E72: =E71-E70 -> -33.5 | G72: =G71-G70 -> 114 | I72: =I71-I70 -> -97.8
A73: Magassa | B73: Fousseni | C73: 20120312 | D73: Grammar Test | E73: 295.1 | F73: Listening Test | G73: 100 | H73: Reading Test | I73: 316 | J73: Log 1-6
A74: magassa | B74: fousseny | C74: 20121203 | D74: no score | F74: Listening Test | G74: 100 | H74: Reading Test | I74: 271.1 | J74: Log 1-4
E75: =E74-E73 -> -295.1 | G75: =G74-G73 -> 0 | I75: =I74-I73 -> -44.9
A76: Milan | B76: Alfredo | C76: 20121206 | D76: Grammar Test | E76: 468.4 | F76: Listening Test | G76: 441.7 | H76: Reading Test | I76: 539.1 | J76: Log 1-6
A77: milan | B77: alfredo | C77: 20130508 | D77: Grammar Test | E77: 563.7 | F77: Listening Test | G77: 472.6 | H77: Reading Test | I77: 569.3 | J77: Log 1-4
E78: =E77-E76 -> 95.3 | G78: =G77-G76 -> 30.9 | I78: =I77-I76 -> 30.2
A79: Rodriguez | B79: Guadalupe | C79: 20121009 | D79: Grammar Test | E79: 437.2 | F79: Listening Test | G79: 309.2 | H79: Reading Test | I79: 526.6 | J79: Log 1-3
A80: rodriguez | B80: guadalupe | C80: 20130305 | D80: Grammar Test | E80: 412.6 | F80: Listening Test | G80: 308.2 | H80: Reading Test | I80: 535.2 | J80: Log 1-4
E81: =E80-E79 -> -24.6 | G81: =G80-G79 -> -1 | I81: =I80-I79 -> 8.6
A82: ronquillo | B82: carlos | C82: 20120604 | D82: Grammar Test | E82: 231.8 | F82: Listening Test | G82: 100 | H82: Reading Test | I82: 340 | J82: Log 1-3
A83: ronquillo | B83: carlos | C83: 20120725 | D83: Grammar Test | E83: 321 | F83: Listening Test | G83: 232.8 | H83: Reading Test | I83: 482.7 | J83: Log 1-4
E84: =E83-E82 -> 89.2 | G84: =G83-G82 -> 132.8 | I84: =I83-I82 -> 142.7
A85: Rubio | B85: Juan | C85: 20120924 | D85: Grammar Test | E85: 546.8 | F85: Listening Test | G85: 100 | H85: Reading Test | I85: 309.9 | J85: Log 1-4
A86: rubio | B86: juan | C86: 20121213 | D86: Grammar Test | E86: 406.3 | F86: Listening Test | G86: 328.2 | H86: Reading Test | I86: 456 | J86: Log 1-4
E87: =E86-E85 -> -140.5 | G87: =G86-G85 -> 228.2 | I87: =I86-I85 -> 146.1
A88: Tuesta | B88: Brenda | C88: 20120709 | D88: Grammar Test | E88: 702.1 | F88: Listening Test | G88: 616.6 | H88: Reading Test | I88: 700.1 | J88: Log 2-3
A89: Tuesta | B89: Brenda | C89: 20130618 | D89: Grammar Test | E89: 748.6 | F89: Listening Test | G89: 553.6 | H89: Reading Test | I89: 645.5 | J89: Log 2-6
E90: =E89-E88 -> 46.5 | G90: =G89-G88 -> -63 | I90: =I89-I88 -> -54.6
A91: Vite | B91: Violeta | C91: 20120730 | D91: Grammar Test | E91: 234.5 | F91: Listening Test | G91: 100 | H91: Reading Test | I91: 307.7 | J91: Log 1-4
A92: Vite | B92: Violeta | C92: 20121205 | D92: Grammar Test | E92: 346.7 | F92: Listening Test | G92: 362.2 | H92: Reading Test | I92: 291.8 | J92: Log 1-4
E93: =E92-E91 -> 112.2 | G93: =G92-G91 -> 262.2 | I93: =I92-I91 -> -15.9
